[Event "*** Titled Tuesday 3|2 Blitz"]
[Site "Chess.com"]
[Date "2016.10.04"]
[Round "4"]
[White "ChessSkool"]
[Black "dusanacns"]
[Result "0-1"]
[WhiteElo "2453"]
[BlackElo "2558"]
[TimeControl "180+2"]
[EndTime "11:50:25 PDT"]
[Termination "dusanacns won on time"]

1. d4 {[%clk 0:03:01.9]} 1... d6 {[%clk 0:03:01.2]} 2. Nf3 {[%clk 0:03:02.4]}
2... Nf6 {[%clk 0:03:02.2]} 3. c4 {[%clk 0:03:03.1]} 3... g6 {[%clk 0:03:03.5]}
4. g3 {[%clk 0:03:03.9]} 4... Bg7 {[%clk 0:03:04.8]} 5. Bg2 {[%clk 0:03:05.2]}
5... O-O {[%clk 0:03:06.5]} 6. Nc3 {[%clk 0:03:06.7]} 6... Nc6 {[%clk 0:03:08]}
7. O-O {[%clk 0:03:07.7]} 7... Bg4 {[%clk 0:03:09.5]} 8. h3 {[%clk 0:02:53.9]}
8... Bxf3 {[%clk 0:03:09.9]} 9. exf3 {[%clk 0:02:55.8]} 9... Nd7 {[%clk
0:03:11.6]} 10. d5 {[%clk 0:02:41.6]} 10... Na5 {[%clk 0:03:11.1]} 11. Qe2
{[%clk 0:02:11.1]} 11... Nb6 {[%clk 0:03:10.8]} 12. c5 {[%clk 0:01:55.4]} 12...
dxc5 {[%clk 0:03:06]} 13. Qb5 {[%clk 0:01:56.3]} 13... Nac4 {[%clk 0:02:32.2]}
14. Qxc5 {[%clk 0:01:52.8]} 14... Qd6 {[%clk 0:02:26.7]} 15. Ne4 {[%clk
0:01:23.1]} 15... Qxc5 {[%clk 0:02:12.7]} 16. Nxc5 {[%clk 0:01:25]} 16... Nxd5
{[%clk 0:02:03.1]} 17. f4 {[%clk 0:01:24.4]} 17... e6 {[%clk 0:01:52.3]} 18.
Nxb7 {[%clk 0:00:42.6]} 18... Rfb8 {[%clk 0:01:43.1]} 19. Nc5 {[%clk 0:00:42.5]}
19... Bxb2 {[%clk 0:01:41.4]} 20. Bxb2 {[%clk 0:00:42.4]} 20... Rxb2 {[%clk
0:01:41.3]} 21. Rfc1 {[%clk 0:00:39.5]} 21... Nd2 {[%clk 0:00:52.7]} 22. Nd3
{[%clk 0:00:29.6]} 22... Rb7 {[%clk 0:00:37.9]} 23. Rd1 {[%clk 0:00:28.8]} 23...
Nc4 {[%clk 0:00:37.9]} 24. Rac1 {[%clk 0:00:20.1]} 24... Ncb6 {[%clk 0:00:39]}
25. Nc5 {[%clk 0:00:19.4]} 25... Rbb8 {[%clk 0:00:40.3]} 26. Na6 {[%clk
0:00:19.6]} 26... Rc8 {[%clk 0:00:38.9]} 27. Rc6 {[%clk 0:00:18.8]} 27... Kf8
{[%clk 0:00:38.7]} 28. Rdc1 {[%clk 0:00:19.2]} 28... Ne7 {[%clk 0:00:16.9]} 29.
Rxc7 {[%clk 0:00:18]} 29... Nbd5 {[%clk 0:00:17.3]} 30. Rxc8+ {[%clk 0:00:08.3]}
30... Rxc8 {[%clk 0:00:19.2]} 31. Rxc8+ {[%clk 0:00:08.6]} 31... Nxc8 {[%clk
0:00:21.1]} 32. Kf1 {[%clk 0:00:06.9]} 32... Ke7 {[%clk 0:00:22.5]} 33. Nc5
{[%clk 0:00:07.4]} 33... Kd6 {[%clk 0:00:22.6]} 34. Nd3 {[%clk 0:00:08.5]} 34...
Nc3 {[%clk 0:00:22.1]} 35. a3 {[%clk 0:00:09.4]} 35... Nb6 {[%clk 0:00:22.4]}
36. Ke1 {[%clk 0:00:08.4]} 36... Nc4 {[%clk 0:00:22.3]} 37. h4 {[%clk
0:00:04.8]} 37... f6 {[%clk 0:00:22]} 38. Bf3 {[%clk 0:00:03.3]} 38... Nxa3
{[%clk 0:00:21.9]} 39. Kd2 {[%clk 0:00:03.7]} 39... Ncb5 {[%clk 0:00:22.1]} 40.
Nb2 {[%clk 0:00:03.8]} 40... Kc5 {[%clk 0:00:21.2]} 41. Kd3 {[%clk 0:00:04.3]}
41... Nd6 {[%clk 0:00:21.5]} 42. h5 {[%clk 0:00:04.6]} 42... gxh5 {[%clk
0:00:22]} 43. Bxh5 {[%clk 0:00:05.2]} 43... Nac4 {[%clk 0:00:21.3]} 44. Nxc4
{[%clk 0:00:05.4]} 44... Nxc4 {[%clk 0:00:22.4]} 45. Bf7 {[%clk 0:00:06.9]}
45... Kd5 {[%clk 0:00:19.4]} 46. Kc3 {[%clk 0:00:02.9]} 46... Nd6 {[%clk
0:00:17.3]} 47. Bg8 {[%clk 0:00:02.9]} 47... Ne4+ {[%clk 0:00:14.8]} 0-1

[Event "*** Titled Tuesday 3|2 Blitz"]
[Site "Chess.com"]
[Date "2016.10.04"]
[Round "4"]
[White "MateusViageiro"]
[Black "SCIM"]
[Result "0-1"]
[WhiteElo "2313"]
[BlackElo "2303"]
[TimeControl "180+2"]
[EndTime "11:50:30 PDT"]
[Termination "SCIM won by resignation"]

1. e4 {[%clk 0:03:01.9]} 1... c5 {[%clk 0:03:00.3]} 2. Nf3 {[%clk 0:03:02.3]}
2... e6 {[%clk 0:03:01.1]} 3. d4 {[%clk 0:03:02.3]} 3... cxd4 {[%clk 0:03:01.8]}
4. Nxd4 {[%clk 0:03:03.4]} 4... Nc6 {[%clk 0:03:03.4]} 5. Nc3 {[%clk 0:03:01.8]}
5... Qc7 {[%clk 0:03:04.3]} 6. Be3 {[%clk 0:03:01.8]} 6... a6 {[%clk 0:03:03.5]}
7. Qd2 {[%clk 0:02:54.7]} 7... Nf6 {[%clk 0:03:01.6]} 8. f3 {[%clk 0:02:54.3]}
8... Be7 {[%clk 0:03:01.7]} 9. O-O-O {[%clk 0:02:54.1]} 9... b5 {[%clk
0:03:02.3]} 10. g4 {[%clk 0:02:54.1]} 10... Nxd4 {[%clk 0:03:02.9]} 11. Bxd4
{[%clk 0:02:54.7]} 11... Bb7 {[%clk 0:03:04.2]} 12. g5 {[%clk 0:02:53.3]} 12...
Nh5 {[%clk 0:03:04.4]} 13. Kb1 {[%clk 0:02:46.9]} 13... O-O {[%clk 0:03:00.5]}
14. Bd3 {[%clk 0:02:27]} 14... Rfd8 {[%clk 0:02:45.7]} 15. Ne2 {[%clk
0:02:24.9]} 15... e5 {[%clk 0:02:43.8]} 16. Be3 {[%clk 0:02:20.8]} 16... d5
{[%clk 0:02:44.5]} 17. Ng3 {[%clk 0:02:13.9]} 17... Nf4 {[%clk 0:02:29.4]} 18.
Qf2 {[%clk 0:02:10.6]} 18... Nxd3 {[%clk 0:02:27.3]} 19. cxd3 {[%clk 0:02:09.4]}
19... d4 {[%clk 0:02:21.1]} 20. Bc1 {[%clk 0:02:07.1]} 20... Bc8 {[%clk
0:02:21.8]} 21. h4 {[%clk 0:02:04.7]} 21... Be6 {[%clk 0:02:20.9]} 22. h5 {[%clk
0:02:04.3]} 22... Qa5 {[%clk 0:02:20.4]} 23. b3 {[%clk 0:01:59.5]} 23... Rdc8
{[%clk 0:02:20.8]} 24. Nf5 {[%clk 0:01:59.8]} 24... Bf8 {[%clk 0:02:03.8]} 25.
g6 {[%clk 0:01:58.4]} 25... Rc7 {[%clk 0:01:54.7]} 26. h6 {[%clk 0:01:52.6]}
26... fxg6 {[%clk 0:01:43.4]} 27. hxg7 {[%clk 0:01:48.9]} 27... Bxg7 {[%clk
0:01:42.6]} 28. Nxg7 {[%clk 0:01:45.9]} 28... Rxg7 {[%clk 0:01:43]} 29. f4
{[%clk 0:01:41.9]} 29... exf4 {[%clk 0:01:37.8]} 30. Qxd4 {[%clk 0:01:41.9]}
30... Rd8 {[%clk 0:00:44.2]} 31. Qe5 {[%clk 0:01:41.5]} 31... Bg4 {[%clk
0:00:44.3]} 32. Bb2 {[%clk 0:01:38.6]} 32... Qc7 {[%clk 0:00:43.7]} 33. Qg5
{[%clk 0:00:56.5]} 33... Bxd1 {[%clk 0:00:42.1]} 34. Rxd1 {[%clk 0:00:54.2]}
34... f3 {[%clk 0:00:33.1]} 35. Rc1 {[%clk 0:00:50.1]} 35... Qd7 {[%clk
0:00:26.2]} 36. d4 {[%clk 0:00:38.3]} 36... f2 {[%clk 0:00:22.5]} 37. d5 {[%clk
0:00:37.7]} 37... Rf8 {[%clk 0:00:17.9]} 38. Rf1 {[%clk 0:00:26.6]} 38... Qh3
{[%clk 0:00:18.4]} 39. Qc1 {[%clk 0:00:26.6]} 39... Qd3+ {[%clk 0:00:18]} 40.
Ka1 {[%clk 0:00:26.3]} 40... Rc7 {[%clk 0:00:19.5]} 41. Qb1 {[%clk 0:00:18.5]}
41... Qxb1+ {[%clk 0:00:19.3]} 42. Kxb1 {[%clk 0:00:19.2]} 42... g5 {[%clk
0:00:20.2]} 43. e5 {[%clk 0:00:16.1]} 43... g4 {[%clk 0:00:20.3]} 44. d6 {[%clk
0:00:16.4]} 44... Rd7 {[%clk 0:00:20.5]} 45. Bd4 {[%clk 0:00:14.8]} 45... g3
{[%clk 0:00:20.8]} 46. e6 {[%clk 0:00:16.2]} 46... Rxd6 {[%clk 0:00:20.5]} 47.
e7 {[%clk 0:00:15.9]} 47... Re8 {[%clk 0:00:19.6]} 48. Bc5 {[%clk 0:00:17.1]}
48... Rxe7 {[%clk 0:00:20]} 49. Bxd6 {[%clk 0:00:17.3]} 49... Re1+ {[%clk
0:00:20.5]} 50. Kc2 {[%clk 0:00:18.8]} 50... Rxf1 {[%clk 0:00:21.1]} 51. Bxg3
{[%clk 0:00:20.7]} 51... Rc1+ {[%clk 0:00:21.5]} 0-1

[Event "*** Titled Tuesday 3|2 Blitz"]
[Site "Chess.com"]
[Date "2016.10.04"]
[Round "4"]
[White "GrigorGrigorov"]
[Black "pedromartinez91"]
[Result "1/2-1/2"]
[WhiteElo "2560"]
[BlackElo "2366"]
[TimeControl "180+2"]
[EndTime "11:50:39 PDT"]
[Termination "Game drawn by repetition"]

1. d4 {[%clk 0:03:02]} 1... d5 {[%clk 0:03:00.5]} 2. Nf3 {[%clk 0:03:01.6]} 2...
Nf6 {[%clk 0:03:01]} 3. c4 {[%clk 0:03:02.7]} 3... e6 {[%clk 0:03:01.8]} 4. Nc3
{[%clk 0:03:00.3]} 4... Be7 {[%clk 0:03:02.6]} 5. Bf4 {[%clk 0:03:00.6]} 5...
O-O {[%clk 0:03:01.8]} 6. e3 {[%clk 0:03:01.8]} 6... Nbd7 {[%clk 0:03:02.5]} 7.
Qc2 {[%clk 0:02:59]} 7... c6 {[%clk 0:02:57.3]} 8. Rd1 {[%clk 0:02:52.3]} 8...
a6 {[%clk 0:02:49.1]} 9. a3 {[%clk 0:02:52.7]} 9... b6 {[%clk 0:02:42.3]} 10.
Bd3 {[%clk 0:02:49]} 10... Bb7 {[%clk 0:02:42.1]} 11. e4 {[%clk 0:02:37.4]}
11... dxe4 {[%clk 0:02:35.5]} 12. Nxe4 {[%clk 0:02:37.9]} 12... Nxe4 {[%clk
0:02:28.5]} 13. Bxe4 {[%clk 0:02:38.5]} 13... Nf6 {[%clk 0:02:30.1]} 14. Bd3
{[%clk 0:02:14.9]} 14... Qc8 {[%clk 0:02:26.1]} 15. c5 {[%clk 0:02:14.1]} 15...
bxc5 {[%clk 0:02:20.3]} 16. dxc5 {[%clk 0:02:14.9]} 16... Rd8 {[%clk 0:02:17.5]}
17. O-O {[%clk 0:02:13.7]} 17... a5 {[%clk 0:02:18]} 18. Ne5 {[%clk 0:01:52.9]}
18... Ba6 {[%clk 0:02:12.5]} 19. b4 {[%clk 0:01:42.7]} 19... Bxd3 {[%clk
0:02:12.4]} 20. Rxd3 {[%clk 0:01:39.3]} 20... Nd5 {[%clk 0:02:09.1]} 21. Bd2
{[%clk 0:01:39.5]} 21... axb4 {[%clk 0:02:07]} 22. axb4 {[%clk 0:01:39.7]} 22...
Bf6 {[%clk 0:02:06.7]} 23. Nc4 {[%clk 0:01:39.8]} 23... Qa6 {[%clk 0:02:00.8]}
24. Rd1 {[%clk 0:01:30.3]} 24... Qa4 {[%clk 0:01:52.5]} 25. Qxa4 {[%clk
0:01:16.9]} 25... Rxa4 {[%clk 0:01:53.9]} 26. Na5 {[%clk 0:01:12.7]} 26... Rc8
{[%clk 0:01:50.8]} 27. Rb3 {[%clk 0:01:04.2]} 27... Bd8 {[%clk 0:01:51.8]} 28.
g3 {[%clk 0:01:01.5]} 28... h5 {[%clk 0:01:50.9]} 29. h4 {[%clk 0:01:01.4]}
29... Kf8 {[%clk 0:01:50.3]} 30. Nc4 {[%clk 0:00:55]} 30... Bc7 {[%clk
0:01:47.2]} 31. Rc1 {[%clk 0:00:45.6]} 31... Rb8 {[%clk 0:01:48]} 32. Rcb1
{[%clk 0:00:40.4]} 32... Ke8 {[%clk 0:01:40.9]} 33. Kg2 {[%clk 0:00:40.2]} 33...
Kd7 {[%clk 0:01:39.2]} 34. Kf3 {[%clk 0:00:41.4]} 34... f6 {[%clk 0:01:40.3]}
35. R1b2 {[%clk 0:00:42.1]} 35... Rba8 {[%clk 0:01:39.6]} 36. Na5 {[%clk
0:00:38.8]} 36... Rb8 {[%clk 0:01:37.1]} 37. Nc4 {[%clk 0:00:37.6]} 37... Rb5
{[%clk 0:01:37.4]} 38. Na3 {[%clk 0:00:37.2]} 38... Rb8 {[%clk 0:01:38.2]} 39.
Nc4 {[%clk 0:00:38.4]} 39... Rba8 {[%clk 0:01:39.2]} 40. Na5 {[%clk 0:00:39.2]}
40... Rb8 {[%clk 0:01:33.2]} 41. Nc4 {[%clk 0:00:39]} 41... e5 {[%clk 0:01:34]}
42. Rb1 {[%clk 0:00:33.9]} 42... Ra2 {[%clk 0:01:33.6]} 43. Be1 {[%clk
0:00:33.3]} 43... f5 {[%clk 0:01:31]} 44. Ne3 {[%clk 0:00:30.7]} 44... e4+
{[%clk 0:01:31.6]} 45. Kg2 {[%clk 0:00:31.3]} 45... Nxe3+ {[%clk 0:01:28]} 46.
Rxe3 {[%clk 0:00:32.1]} 46... Be5 {[%clk 0:01:28.5]} 47. Reb3 {[%clk 0:00:31.2]}
47... Rb5 {[%clk 0:01:27.9]} 48. Bc3 {[%clk 0:00:31.1]} 48... Ke6 {[%clk
0:01:24.6]} 49. Bxe5 {[%clk 0:00:31.4]} 49... Kxe5 {[%clk 0:01:26.2]} 50. Rd1
{[%clk 0:00:32.7]} 50... Ra4 {[%clk 0:01:27.2]} 51. Rd6 {[%clk 0:00:32.7]} 51...
Raxb4 {[%clk 0:01:27.7]} 52. Rxb4 {[%clk 0:00:34]} 52... Rxb4 {[%clk 0:01:29.3]}
53. Rxc6 {[%clk 0:00:35.2]} 53... Rb2 {[%clk 0:01:30.8]} 54. Rc7 {[%clk
0:00:34.4]} 54... Rc2 {[%clk 0:01:28.7]} 55. Kf1 {[%clk 0:00:32.2]} 55... g6
{[%clk 0:01:28.8]} 56. Ke1 {[%clk 0:00:32.6]} 56... Kd5 {[%clk 0:01:29.7]} 57.
Rg7 {[%clk 0:00:33]} 57... Rxc5 {[%clk 0:01:26.9]} 58. Rxg6 {[%clk 0:00:34.1]}
58... Kd4 {[%clk 0:01:28.3]} 59. Rd6+ {[%clk 0:00:31.1]} 59... Rd5 {[%clk
0:01:26.1]} 60. Ra6 {[%clk 0:00:31.1]} 60... Kd3 {[%clk 0:01:26.7]} 61. Ra3+
{[%clk 0:00:31.4]} 61... Kd4 {[%clk 0:01:28.1]} 62. Ke2 {[%clk 0:00:32.8]} 62...
Rb5 {[%clk 0:01:28.9]} 63. Ra4+ {[%clk 0:00:32.1]} 63... Ke5 {[%clk 0:01:29.5]}
64. Ra8 {[%clk 0:00:32.6]} 64... Rb2+ {[%clk 0:01:30.1]} 65. Kf1 {[%clk
0:00:33.8]} 65... Kf6 {[%clk 0:01:26.4]} 66. Ra6+ {[%clk 0:00:33.6]} 66... Ke5
{[%clk 0:01:26.8]} 67. Rh6 {[%clk 0:00:33.1]} 67... Rb1+ {[%clk 0:01:26.1]} 68.
Kg2 {[%clk 0:00:33.6]} 68... Rb2 {[%clk 0:01:27.8]} 69. Kg1 {[%clk 0:00:29.7]}
69... Rb1+ {[%clk 0:01:28.5]} 70. Kg2 {[%clk 0:00:30.6]} 70... Rb2 {[%clk
0:01:29.8]} 71. Kg1 {[%clk 0:00:26.5]} 71... Rb1+ {[%clk 0:01:30.7]} 72. Kg2
{[%clk 0:00:27.9]} 72... Rb2 {[%clk 0:01:22.8]} 73. Kg1 {[%clk 0:00:29]} 1/2-1/2

[Event "*** Titled Tuesday 3|2 Blitz"]
[Site "Chess.com"]
[Date "2016.10.04"]
[Round "4"]
[White "LuckyTiger"]
[Black "Mornar1951"]
[Result "1-0"]
[WhiteElo "2590"]
[BlackElo "2586"]
[TimeControl "180+2"]
[EndTime "11:51:15 PDT"]
[Termination "LuckyTiger won by resignation"]

1. e4 {[%clk 0:03:01.9]} 1... e5 {[%clk 0:03:00.7]} 2. Nf3 {[%clk 0:03:02.6]}
2... Nf6 {[%clk 0:03:02.2]} 3. Nxe5 {[%clk 0:03:01.4]} 3... d6 {[%clk
0:03:03.6]} 4. Nf3 {[%clk 0:03:02.4]} 4... Nxe4 {[%clk 0:03:05.3]} 5. Qe2 {[%clk
0:03:03.2]} 5... Qe7 {[%clk 0:03:05.3]} 6. d3 {[%clk 0:03:04.8]} 6... Nf6 {[%clk
0:03:06.4]} 7. Bg5 {[%clk 0:03:06.5]} 7... Nbd7 {[%clk 0:03:06.7]} 8. Nc3 {[%clk
0:03:03.5]} 8... h6 {[%clk 0:03:06.4]} 9. Bd2 {[%clk 0:02:58.8]} 9... Nb6 {[%clk
0:02:52.9]} 10. O-O-O {[%clk 0:02:56.5]} 10... Bg4 {[%clk 0:02:45.4]} 11. Re1
{[%clk 0:02:52.5]} 11... Qxe2 {[%clk 0:02:46.2]} 12. Bxe2 {[%clk 0:02:54.4]}
12... O-O-O {[%clk 0:02:45.9]} 13. h3 {[%clk 0:02:55.4]} 13... Bd7 {[%clk
0:02:42.3]} 14. Bd1 {[%clk 0:02:56.6]} 14... Re8 {[%clk 0:02:40.5]} 15. g4
{[%clk 0:02:50.3]} 15... Be7 {[%clk 0:02:40.3]} 16. Nd4 {[%clk 0:02:48.1]} 16...
Nfd5 {[%clk 0:02:16]} 17. Ne4 {[%clk 0:02:42.2]} 17... Bh4 {[%clk 0:02:11]} 18.
c4 {[%clk 0:02:35.8]} 18... Nf6 {[%clk 0:02:11]} 19. Ng3 {[%clk 0:02:29.6]}
19... Bxg3 {[%clk 0:01:56.5]} 20. fxg3 {[%clk 0:02:29.9]} 20... Rxe1 {[%clk
0:01:57.8]} 21. Rxe1 {[%clk 0:02:31.8]} 21... Re8 {[%clk 0:01:58.8]} 22. Rf1
{[%clk 0:02:32.3]} 22... c5 {[%clk 0:01:35.4]} 23. Nf5 {[%clk 0:02:28.9]} 23...
Bxf5 {[%clk 0:01:36.2]} 24. Rxf5 {[%clk 0:02:30.8]} 24... Nbd7 {[%clk
0:01:33.7]} 25. Ba4 {[%clk 0:01:42.8]} 25... Re2 {[%clk 0:01:27.1]} 26. Bxd7+
{[%clk 0:01:42.5]} 26... Kxd7 {[%clk 0:01:25.1]} 27. Bxh6 {[%clk 0:01:40]} 27...
Ne8 {[%clk 0:00:59.2]} 28. Kd1 {[%clk 0:01:03.1]} 28... Rg2 {[%clk 0:00:49.1]}
29. Bxg7 {[%clk 0:00:52.5]} 29... Ke6 {[%clk 0:00:50]} 30. Bc3 {[%clk
0:00:45.2]} 30... Rxg3 {[%clk 0:00:51.3]} 31. Rh5 {[%clk 0:00:40.8]} 31... Rxd3+
{[%clk 0:00:51.6]} 32. Ke2 {[%clk 0:00:41.9]} 32... Rg3 {[%clk 0:00:51.9]} 33.
Kf2 {[%clk 0:00:37.2]} 33... Rd3 {[%clk 0:00:52.7]} 34. Rh6+ {[%clk 0:00:37.1]}
34... Ke7 {[%clk 0:00:51.2]} 35. Ke2 {[%clk 0:00:32.1]} 35... Rg3 {[%clk
0:00:50.9]} 36. Be1 {[%clk 0:00:33.4]} 36... Rg2+ {[%clk 0:00:46.6]} 37. Bf2
{[%clk 0:00:34.5]} 37... Rh2 {[%clk 0:00:47.9]} 38. Kf3 {[%clk 0:00:33.6]} 38...
Rh1 {[%clk 0:00:48]} 39. h4 {[%clk 0:00:27]} 39... Ra1 {[%clk 0:00:44]} 40. a3
{[%clk 0:00:22.1]} 40... Ra2 {[%clk 0:00:43.1]} 41. h5 {[%clk 0:00:21.2]} 41...
Rxb2 {[%clk 0:00:44.3]} 42. Rh8 {[%clk 0:00:21.5]} 42... Rb3+ {[%clk 0:00:40]}
43. Kf4 {[%clk 0:00:22.8]} 43... Ng7 {[%clk 0:00:35.9]} 44. Bh4+ {[%clk
0:00:22.3]} 44... Kd7 {[%clk 0:00:25.3]} 45. Rh7 {[%clk 0:00:13.5]} 45... Ne6+
{[%clk 0:00:26]} 46. Ke4 {[%clk 0:00:15.1]} 46... Ke8 {[%clk 0:00:25.7]} 47. h6
{[%clk 0:00:14.5]} 47... Rh3 {[%clk 0:00:25.4]} 48. Bf6 {[%clk 0:00:15.5]} 48...
b6 {[%clk 0:00:14.5]} 49. Rh8+ {[%clk 0:00:16.1]} 49... Kd7 {[%clk 0:00:15.5]}
50. h7 {[%clk 0:00:17.7]} 50... a6 {[%clk 0:00:14.7]} 51. a4 {[%clk 0:00:18.3]}
51... a5 {[%clk 0:00:13.7]} 52. g5 {[%clk 0:00:19.5]} 52... Kc7 {[%clk
0:00:12.1]} 53. g6 {[%clk 0:00:17.8]} 53... fxg6 {[%clk 0:00:12.4]} 54. Ra8
{[%clk 0:00:19.4]} 54... Kb7 {[%clk 0:00:02.5]} 55. h8=Q {[%clk 0:00:19.9]}
55... Rxh8 {[%clk 0:00:04.4]} 56. Rxh8 {[%clk 0:00:21]} 56... Kc6 {[%clk
0:00:05.5]} 57. Rh6 {[%clk 0:00:20.4]} 57... g5 {[%clk 0:00:06.3]} 58. Be7
{[%clk 0:00:20.4]} 58... Kd7 {[%clk 0:00:07.7]} 59. Rh7 {[%clk 0:00:20.3]} 59...
Nd4 {[%clk 0:00:08.7]} 60. Bf6+ {[%clk 0:00:20]} 1-0

[Event "*** Titled Tuesday 3|2 Blitz"]
[Site "Chess.com"]
[Date "2016.10.04"]
[Round "4"]
[White "LornerAcosta"]
[Black "hypert"]
[Result "0-1"]
[WhiteElo "2330"]
[BlackElo "2298"]
[TimeControl "180+2"]
[EndTime "11:51:24 PDT"]
[Termination "hypert won by resignation"]

1. d4 {[%clk 0:03:01.9]} 1... Nf6 {[%clk 0:03:00.2]} 2. Nf3 {[%clk 0:03:02.4]}
2... e6 {[%clk 0:03:01]} 3. Bg5 {[%clk 0:03:02.7]} 3... d5 {[%clk 0:03:01.3]} 4.
e3 {[%clk 0:03:02.7]} 4... c5 {[%clk 0:02:59]} 5. c3 {[%clk 0:03:03.6]} 5...
Nbd7 {[%clk 0:02:57.6]} 6. Nbd2 {[%clk 0:03:04.2]} 6... Bd6 {[%clk 0:02:58.3]}
7. Bd3 {[%clk 0:03:04.6]} 7... O-O {[%clk 0:02:59]} 8. O-O {[%clk 0:03:05.2]}
8... h6 {[%clk 0:03:00]} 9. Bh4 {[%clk 0:03:05.8]} 9... Qc7 {[%clk 0:02:59.7]}
10. Bxf6 {[%clk 0:03:00.6]} 10... Nxf6 {[%clk 0:03:00]} 11. dxc5 {[%clk
0:03:02]} 11... Bxc5 {[%clk 0:02:59.5]} 12. e4 {[%clk 0:03:03.9]} 12... dxe4
{[%clk 0:02:39]} 13. Nxe4 {[%clk 0:03:05.8]} 13... Nxe4 {[%clk 0:02:40.1]} 14.
Bxe4 {[%clk 0:03:07.6]} 14... Bd7 {[%clk 0:02:39.9]} 15. Qe2 {[%clk 0:03:07.4]}
15... a6 {[%clk 0:02:38.8]} 16. Rfd1 {[%clk 0:03:07.5]} 16... Rab8 {[%clk
0:02:35.6]} 17. Ne5 {[%clk 0:03:06.5]} 17... Be8 {[%clk 0:02:23.5]} 18. Rd3
{[%clk 0:02:59.9]} 18... Bd6 {[%clk 0:02:14.9]} 19. Rxd6 {[%clk 0:02:52.1]}
19... Qxd6 {[%clk 0:02:14.7]} 20. Rd1 {[%clk 0:02:54]} 20... Qc7 {[%clk
0:02:09.6]} 21. Bc2 {[%clk 0:02:52.4]} 21... Rd8 {[%clk 0:01:57.8]} 22. Re1
{[%clk 0:02:51.9]} 22... f5 {[%clk 0:01:22.7]} 23. h3 {[%clk 0:02:49.8]} 23...
b5 {[%clk 0:01:18.2]} 24. a3 {[%clk 0:02:45.8]} 24... Rd6 {[%clk 0:01:10.3]} 25.
Qe3 {[%clk 0:02:43.3]} 25... Bc6 {[%clk 0:01:06.3]} 26. Bb3 {[%clk 0:02:41]}
26... Bd5 {[%clk 0:01:02]} 27. Bc2 {[%clk 0:02:39.1]} 27... Rfd8 {[%clk
0:00:58.4]} 28. Nd3 {[%clk 0:02:35.5]} 28... Be4 {[%clk 0:00:57.8]} 29. Nb4
{[%clk 0:02:32.8]} 29... Bxc2 {[%clk 0:00:55.6]} 30. Nxc2 {[%clk 0:02:34.7]}
30... Re8 {[%clk 0:00:53.2]} 31. Nd4 {[%clk 0:02:33.4]} 31... Qf7 {[%clk
0:00:52.3]} 32. Nf3 {[%clk 0:02:29.7]} 32... Rd5 {[%clk 0:00:49.4]} 33. Qb6
{[%clk 0:02:29.3]} 33... e5 {[%clk 0:00:47.7]} 34. Qxa6 {[%clk 0:02:28.4]} 34...
e4 {[%clk 0:00:48.6]} 35. Nd4 {[%clk 0:02:29.2]} 35... f4 {[%clk 0:00:49.2]} 36.
a4 {[%clk 0:02:20]} 36... bxa4 {[%clk 0:00:47.2]} 37. Qxa4 {[%clk 0:02:20.2]}
37... e3 {[%clk 0:00:48.6]} 38. fxe3 {[%clk 0:02:18.1]} 38... fxe3 {[%clk
0:00:48.7]} 39. Qc2 {[%clk 0:02:17.6]} 39... Rde5 {[%clk 0:00:47.4]} 40. Re2
{[%clk 0:02:16.1]} 40... Rf8 {[%clk 0:00:46.8]} 41. Nf3 {[%clk 0:02:16.4]} 41...
Re7 {[%clk 0:00:46]} 42. c4 {[%clk 0:02:16.4]} 42... Rc8 {[%clk 0:00:45.7]} 43.
b3 {[%clk 0:02:16.8]} 43... Qf6 {[%clk 0:00:47.2]} 44. Qd3 {[%clk 0:02:11.2]}
44... Rce8 {[%clk 0:00:45.1]} 45. Qd5+ {[%clk 0:02:07.2]} 45... Kh8 {[%clk
0:00:44.8]} 46. Qd3 {[%clk 0:02:06.5]} 46... Qa1+ {[%clk 0:00:44.1]} 47. Kh2
{[%clk 0:02:07.2]} 47... Qa7 {[%clk 0:00:40.9]} 48. Nh4 {[%clk 0:01:57.3]} 48...
Rd7 {[%clk 0:00:40.5]} 49. Qc3 {[%clk 0:01:45.4]} 49... Qd4 {[%clk 0:00:37.3]}
50. Ng6+ {[%clk 0:01:43.9]} 50... Kg8 {[%clk 0:00:33.7]} 51. Qc2 {[%clk
0:01:22.6]} 51... Qd3 {[%clk 0:00:34.4]} 52. Qxd3 {[%clk 0:01:22.9]} 52... Rxd3
{[%clk 0:00:34.4]} 53. Kg3 {[%clk 0:01:24.4]} 53... Rxb3 {[%clk 0:00:34.7]} 54.
Nf4 {[%clk 0:01:20.3]} 54... Rc3 {[%clk 0:00:34.4]} 55. Kf3 {[%clk 0:01:21.1]}
55... Rf8 {[%clk 0:00:29.1]} 56. Rxe3 {[%clk 0:01:13.6]} 56... Rxc4 {[%clk
0:00:30]} 57. Re4 {[%clk 0:01:13.3]} 57... Rxe4 {[%clk 0:00:30.6]} 58. Kxe4
{[%clk 0:01:14.6]} 58... g5 {[%clk 0:00:32.2]} 59. Nh5 {[%clk 0:01:12]} 59...
Kh7 {[%clk 0:00:28.4]} 60. g4 {[%clk 0:01:11.9]} 60... Kg6 {[%clk 0:00:29.2]}
61. Ng3 {[%clk 0:01:09.7]} 61... Rf2 {[%clk 0:00:29.6]} 62. Nf5 {[%clk
0:01:03.9]} 62... Rh2 {[%clk 0:00:30.3]} 63. h4 {[%clk 0:01:05.4]} 63... gxh4
{[%clk 0:00:30.6]} 64. Kf4 {[%clk 0:01:06.9]} 64... Rh1 {[%clk 0:00:31]} 65. Kf3
{[%clk 0:01:08.1]} 65... Kg5 {[%clk 0:00:31]} 66. Ne3 {[%clk 0:01:09.1]} 66...
Ra1 {[%clk 0:00:25.1]} 67. Kg2 {[%clk 0:01:08.5]} 67... Ra2+ {[%clk 0:00:23.1]}
68. Kh1 {[%clk 0:01:08.8]} 68... Kf4 {[%clk 0:00:22.1]} 69. Nf5 {[%clk
0:01:10.1]} 69... Kxg4 {[%clk 0:00:22.2]} 70. Nxh6+ {[%clk 0:01:11]} 70... Kh3
{[%clk 0:00:21.2]} 71. Kg1 {[%clk 0:01:12.2]} 71... Ra1+ {[%clk 0:00:22.3]} 72.
Kf2 {[%clk 0:01:13.4]} 72... Ra4 {[%clk 0:00:20.2]} 73. Ng8 {[%clk 0:01:11.2]}
73... Kh2 {[%clk 0:00:20]} 74. Ne7 {[%clk 0:01:10.3]} 74... Rf4+ {[%clk
0:00:21]} 75. Ke3 {[%clk 0:01:10.5]} 75... Rf7 {[%clk 0:00:22.5]} 76. Ng6 {[%clk
0:01:11.2]} 76... h3 {[%clk 0:00:23.8]} 77. Nf4 {[%clk 0:01:09.4]} 77... Rxf4
{[%clk 0:00:24.4]} 78. Kxf4 {[%clk 0:01:10.5]} 78... Kg2 {[%clk 0:00:26.3]} 0-1